Cogmind - Beta 14 @@@ ROGUE MODE // 2024.12.02 @ 00:02:23 Player: UnderDoug Result: Destroyed by W6-T46(R) with Subdweller Laser Performance ------------- Evolutions (0) 0 Regions Visited (3) 600 Robots Destroyed (29) 145 Value Destroyed (528) 528 Prototype IDs (0) 0 Alien Tech Used (0) 0 Bonus (0) 0 TOTAL SCORE: 1273 Bonus ------- None Cogmind --------- Core Integrity 0/250 Matter 268/300 Energy 200/200 System Corruption 0% Temperature Cool (6) Movement Walking (120) Location -10/Subcaves Parts ------- > --- POWER (1) -------- Subdweller Power Source > --- PROPULSION (2) --- Improved Aluminum Leg > --- UTILITY (2) ------ Small Storage Unit Improved Targeting Computer > --- WEAPON (2) ------- Light Assault Rifle > --- INVENTORY (8) ---- Medium Armor Plating Medium Armor Plating Peak State ------------ > --- POWER ------------ Light Ion Engine > --- PROPULSION ------- Improved Aluminum Leg Improved Aluminum Leg > --- UTILITY ---------- Small Storage Unit Visual Processing Unit > --- WEAPON ----------- Light Assault Rifle Light Assault Rifle > --- INVENTORY -------- Ion Engine Light Ion Engine Improved Aluminum Leg Improved Aluminum Leg Wheel Compact Wheel Medium Laser Medium Laser [Rating: 11] Favorites ----------- Power Light Ion Engine Engine Light Ion Engine Propulsion Improved Aluminum Leg Leg Improved Aluminum Leg Utility Small Storage Unit Device Terrain Scanner Storage Small Storage Unit Processor Visual Processing Unit Weapon Beam Cannon Energy Gun Medium Laser Energy Cannon Beam Cannon Ballistic Gun Light Assault Rifle Launcher Grenade Launcher Build | -11 -10 -10 -10 ------- Run | Yrd Mat Min Sub Slots Evolved . | . . . . Power . | . . . . Propulsion . | . . . . Utility . | . . . . Weapon . | . . . . Parts Attached 33 | 6 18 . 9 Power 5 | 1 2 . 2 Engine 5 | 1 2 . 2 Core . | . . . . Reactor . | . . . . Propulsion 9 | 2 5 . 2 Treads . | . . . . Leg 9 | 2 5 . 2 Wheel . | . . . . Hover . | . . . . Flight . | . . . . Utility 9 | 1 6 . 2 Device 5 | . 4 . 1 Storage 1 | 1 . . . Processor 3 | . 2 . 1 Hackware . | . . . . Protection . | . . . . Artifact . | . . . . Weapon 10 | 2 5 . 3 Energy Gun 1 | 1 . . . Energy Cannon 4 | . 3 . 1 Ballistic Gun 4 | 1 2 . 1 Ballistic Cannon . | . . . . Launcher 1 | . . . 1 Special Weapon . | . . . . Impact Weapon . | . . . . Slashing Weapon . | . . . . Piercing Weapon . | . . . . Special Melee Weapon . | . . . . Unidentified Prototypes . | . . . . Parts Lost 7 | . . . 7 Power 1 | . . . 1 Propulsion 3 | . . . 3 Utility . | . . . . Weapon 3 | . . . 3 Highest Loss Streak 4 | . . . 4 To Critical Strikes . | . . . . Average Slot Usage (%) 98 | . 96 100 98 Engine 13 | . 13 14 13 Leg 27 | . 27 28 27 Device 11 | . 8 14 11 Storage 14 | . 14 14 14 Processor 2 | . 3 . 2 Energy Cannon 18 | . 10 28 19 Ballistic Gun 6 | . 15 . . Launcher 2 | . . . 7 Peak Build Rating 11 | 6 11 10 11 Average Rating 9 | 4 8 10 10 On Entrance 6 | . 6 10 10 Naked Turns . | . . . . Heaviest Build 16 | 11 15 15 16 Greatest Support 26 | 20 26 26 26 Greatest Overweight (x) 3 | . 3 . . Average Overweight (x) . | . . . . Largest Inventory Capacity 8 | 8 8 8 8 Average Capacity 7 | 6 8 8 8 Most Carried 8 | 6 8 8 8 Average Carried 7 | 3 7 8 6 Final Capacity 8 | 8 8 8 8 Final Carried 8 | 6 8 8 2 Class Distribution -------------------- 100% | Mutant Dominant Class ---------------- Mutant | -10/Materials Mutant | -10/Mines Mutant | -10/Subcaves Resources | -11 -10 -10 -10 ----------- Run | Yrd Mat Min Sub Matter Collected 624 | 209 253 39 123 Remotely . | . . . . Salvage Created 732 | 81 350 81 220 Parts 57 | 3 27 14 13 Haulers Intercepted 1 | . 1 . . Recyclers Shooed . | . . . . Parts Field Recycled . | . . . . Retrieved Matter . | . . . . Parts Self-Destructed 11 | . . . 11 Prevented . | . . . . Kills | -11 -10 -10 -10 ------- Run | Yrd Mat Min Sub Combat Hostiles Destroyed 22 | . 10 6 6 Guns 9 | . 9 . . Cannons 11 | . 1 6 4 AOE 2 | . . . 2 Classes Destroyed 9 | 1 6 . 2 Worker 2 | . 2 . . Hauler 1 | . 1 . . Recycler 1 | 1 . . . Operator 1 | . 1 . . Watcher 2 | . 2 . . Swarmer 16 | . 9 6 1 Grunt 3 | . 1 . 2 Sentry 1 | . . . 1 Subdweller 2 | . . . 2 Best Kill Streak 4 | 1 4 3 2 Combat Bots Only 3 | . 3 3 2 Max Kills in Single Turn 2 | 1 2 1 1 Gunslinging . | . . . . Exploded 1 | . . . 1 Melee . | . . . . Uniques/NPCs Destroyed . | . . . . Combat | -11 -10 -10 -10 -------- Run | Yrd Mat Min Sub Hostile Shots Fired 141 | . 46 29 66 Missed 42 | . 12 6 24 Damage Taken 1197 | . 285 184 728 Core 270 | . 69 66 135 Absorbed by Shields . | . . . . Regen/Repaired (Parts) 48 | . 48 . . Core Remaining (%) 100 | 100 . . . Volleys Fired 108 | 4 45 12 47 Largest 2 | 2 2 2 2 Hottest 120 | 70 80 120 120 Shots Fired 187 | 8 86 24 69 Gun 91 | 8 73 . 10 Cannon 87 | . 13 24 50 Launcher 9 | . . . 9 Special . | . . . . Kinetic 74 | 4 60 . 10 Thermal 104 | 4 26 24 50 Explosive 9 | . . . 9 Electromagnetic . | . . . . Robot Hit Streak 14 | 2 12 3 14 Robot Miss Streak 4 | 2 4 3 3 Penetration Max . | . . . . Secondary Targets 1 | . 1 . . Max Gunslinging Chain 1 | . 1 . . Shots Hit Robots 95 | 4 43 9 39 Core Hits 42 | 2 21 6 13 Critical Kills . | . . . . Critical Parts Destroyed . | . . . . Critical Strikes 3 | . 3 . . Burn 3 | . 3 . . Melee Attacks . | . . . . Impact . | . . . . Slashing . | . . . . Piercing . | . . . . Sneak Attacks . | . . . . Combat Hostiles . | . . . . Follow-up Attacks . | . . . . Damage Inflicted 1373 | 45 457 154 717 Guns 493 | 45 384 . 64 Cannons 657 | . 71 154 432 Explosions 221 | . . . 221 Melee . | . . . . Ramming 2 | . 2 . . Kinetic 343 | 19 260 . 64 Thermal 807 | 26 195 154 432 Explosive 221 | . . . 221 Electromagnetic . | . . . . Impact . | . . . . Slashing . | . . . . Piercing . | . . . . Highest Corruption . | . . . . Average Corruption . | . . . . Corruption Purged . | . . . . Corruption Blocked . | . . . . Overload Shots . | . . . . Overflow Damage . | . . . . Projectiles . | . . . . Explosions . | . . . . Melee . | . . . . Knockbacks . | . . . . Impact . | . . . . Kinetic . | . . . . Secondary . | . . . . Self-Inflicted Damage 21 | . . . 21 Shots 2 | . . . 2 Rammed . | . . . . Targets Rammed 1 | . 1 . . Kicked 1 | . 1 . . Crushed . | . . . . Highest Temperature 360 | 80 128 360 66 Average Temperature 80 | 45 49 151 27 Received Heat Transfer 264 | . 18 . 246 Effects 1 | . . 1 . Damage (minor) 1 | . . 1 . Siege Activations . | . . . . Robots Corrupted . | . . . . Combat Hostiles . | . . . . Parts Fried . | . . . . Impact Corruptions . | . . . . Robots Melted . | . . . . Combat Hostiles . | . . . . Parts Melted 2 | . 2 . . Heat Transferred 2072 | 74 740 333 925 Parts Sabotaged . | . . . . Parts Stolen . | . . . . Parts Stripped . | . . . . Power Chain Reactions . | . . . . Alert | -11 -10 -10 -10 ------- Run | Yrd Mat Min Sub Peak Influence 257 | 5 257 143 . Initial 43 | . 3 43 . Average 106 | 1 130 84 . Maximum Alert Level 1 | . 1 . . Low Security (%) 88 | 100 78 100 . Level 1 11 | . 21 . . Level 2 . | . . . . Level 3 . | . . . . Level 4 . | . . . . Level 5 . | . . . . High Security . | . . . . Max Security . | . . . . Squads Dispatched 1 | . 1 . . Investigation . | . . . . Extermination . | . . . . Reinforcement 1 | . 1 . . Assault . | . . . . Garrison . | . . . . Intercept . | . . . . Searches Triggered . | . . . . Construction Impeded . | . . . . Haulers Reinforced . | . . . . Active Scanning Responses . | . . . . Cargo Convoy Interrupts . | . . . . Stealth | -11 -10 -10 -10 --------- Run | Yrd Mat Min Sub Distress Signals 5 | . 5 . . Communications Jammed . | . . . . Distress Signals . | . . . . Times Spotted 34 | . 20 6 8 Peak Tracking Total 4 | . 4 3 3 Tactical Retreats 1 | . 1 . . Traps | -11 -10 -10 -10 ------- Run | Yrd Mat Min Sub Traps Triggered 4 | . 4 . . Indirectly . | . . . . Trap Hack Attempts . | . . . . Triggered . | . . . . Disarmed . | . . . . Reprogrammed . | . . . . Reused . | . . . . Traps Extracted . | . . . . Installed . | . . . . Triggered . | . . . . Machines | -11 -10 -10 -10 ---------- Run | Yrd Mat Min Sub Machines Disabled 7 | . 5 2 . Max in Single Turn 2 | . 1 2 . Machines Repaired . | . . . . Machines Dismantled . | . . . . Machines Sabotaged . | . . . . Overloaded Fab Kills . | . . . . Hacking | -11 -10 -10 -10 --------- Run | Yrd Mat Min Sub Machines Accessed 8 | . 8 . . Terminals 7 | . 7 . . Fabricators . | . . . . Repair Stations 1 | . 1 . . Recycling Units . | . . . . Scanalyzers . | . . . . Garrison Access . | . . . . Total Hacks 26 | . 26 . . Successful 13 | . 13 . . Failed 13 | . 13 . . Catastrophic 2 | . 2 . . Database Lockouts . | . . . . Manual . | . . . . Terminals 22 | . 22 . . Fabricators . | . . . . Repair Stations 4 | . 4 . . Recycling Units . | . . . . Scanalyzers . | . . . . Garrison Access . | . . . . Terminal Hacks 9 | . 9 . . Branch Access Points 1 | . 1 . . Terminal Index 1 | . 1 . . Alert Level 1 | . 1 . . Locate Traps 1 | . 1 . . Dispatch Records 1 | . 1 . . Registered Components 1 | . 1 . . Zone Layout 3 | . 3 . . Fabricator Hacks . | . . . . Repair Station Hacks 4 | . 4 . . Scan Component 2 | . 2 . . Repair 2 | . 2 . . Recycling Unit Hacks . | . . . . Scanalyzer . | . . . . Garrison Access Hacks . | . . . . Unauthorized Hacks . | . . . . Terminals . | . . . . Fabricators . | . . . . Repair Stations . | . . . . Recycling Units . | . . . . Scanalyzers . | . . . . Garrison Access . | . . . . Data Cores Recovered 1 | . 1 . . Used . | . . . . Hacking Detections 7 | . 7 . . Full Trace Events 1 | . 1 . . Feedback Events . | . . . . Feedback Blocked . | . . . . Robot Schematics Acquired . | . . . . Robots Built . | . . . . Authchips . | . . . . Time . | . . . . Total Robot Build Rating . | . . . . Part Schematics Acquired . | . . . . Parts Built . | . . . . Authchips . | . . . . Time . | . . . . Total Part Build Rating . | . . . . Parts Repaired 2 | . 2 . . Time 52 | . 52 . . Parts Recycled . | . . . . Recycled Matter . | . . . . Retrieved Matter . | . . . . Retrieved Components . | . . . . Parts Scanalyzed . | . . . . Part Schematics Acquired . | . . . . Parts Damaged . | . . . . Bothacking | -11 -10 -10 -10 ------------ Run | Yrd Mat Min Sub Used RIF Installer . | . . . . Robots Hacked . | . . . . Non-combat . | . . . . Combat . | . . . . Robot Hacks Applied . | . . . . Relay Couplers Released . | . . . . Fabnet Peak Effective % . | . . . . Robots Rewired . | . . . . Allies Hacked . | . . . . Hacks Repelled . | . . . . Allies | -11 -10 -10 -10 -------- Run | Yrd Mat Min Sub Total Allies 1 | . . 1 . Largest Group 1 | . . 1 . Highest-Rated Group 31 | . . 31 . Highest-Rated Ally 31 | . . 31 . Total Orders . | . . . . Ally Attacks . | . . . . Total Damage . | . . . . Kills . | . . . . Allies Corrupted . | . . . . Allies Melted . | . . . . Intel | -11 -10 -10 -10 ------- Run | Yrd Mat Min Sub Robot Analysis Total . | . . . . Derelict Logs Recovered 1 | . . 1 . Drone Launches . | . . . . Drone Recoveries . | . . . . Exploration | -11 -10 -10 -10 ------------- Run | Yrd Mat Min Sub Turns Passed 2722 | 84 1053 769 816 Spaces Moved 1895 | 52 679 600 564 Core 8 | 6 2 . . Treads . | . . . . Legs 1887 | 46 677 600 564 Wheels . | . . . . Hover . | . . . . Flight . | . . . . Fastest Speed 50 | 50 100 120 120 Average Speed 119 | 111 120 120 120 Slowest Speed 200 | 120 200 120 120 Overloaded Moves . | . . . . Propulsion Burnouts . | . . . . Robots Hopped . | . . . . Cave-ins Triggered . | . . . . Exploration Rate (%) 58 | 3 98 100 31 Regions Visited 3 Branch Regions 2 Pre-discovered Areas . | . . . . Known Exits Taken 1 | . 1 . . Unknown Exits Taken 2 | 1 . 1 . Scrap Searched 1 | . . 1 . Spaces Dug . | . . . . Terrain Destroyed 37 | . . . 37 Melee . | . . . . Projectile . | . . . . AOE 37 | . . . 37 Terrain Rammed . | . . . . Walls Destroyed . | . . . . Machines Disabled . | . . . . Actions | -11 -10 -10 -10 --------- Run | Yrd Mat Min Sub Total 2169 | 67 841 625 636 Wait 102 | . 76 14 12 Move 1892 | 51 678 599 564 Hop . | . . . . Pick Up 18 | 6 11 . 1 Fast Attach 19 | 6 12 . 1 Attach 7 | . 1 . 6 Detach . | . . . . Swap 7 | . 5 . 2 Drop 15 | . 12 . 3 Fire 108 | 4 45 12 47 Melee . | . . . . Ram . | . . . . Kick 1 | . 1 . . Crush . | . . . . Escape Stasis . | . . . . Rewire . | . . . . Trap . | . . . . Miscellaneous . | . . . . Route ------- -11/Scrapyard -10/Materials (discovered 5 exits: [*Mat x3] / *Min x2) -10/Mines (discovered 4 exits: [*Mat x2] / [*Exi] / [*Sub]) -10/Subcaves History --------- Turn | Location | Event 2 | -11/Scrapyard | Met Revision 17 5 | -11/Scrapyard | Discovered new exit (range 15) 85 | -11/Scrapyard | Entered Materials 309 | -10/Materials | Discovered new exit (range 17) 316 | -10/Materials | Build established: Mutant 391 | -10/Materials | Discovered new exit (range 18) 497 | -10/Materials | Discovered new exit (range 9) 693 | -10/Materials | Discovered new exit (range 19) 746 | -10/Materials | Repaired Lgt. Ion Engine 773 | -10/Materials | Repaired Terrain Scanner 1077 | -10/Materials | Discovered new exit (range 16) 1118 | -10/Materials | Identified exit to Mines 1138 | -10/Materials | Entered Mines 1283 | -10/Mines | Discovered new exit (range 16) 1335 | -10/Mines | A weapon hastily lodged in a ceiling crevice suddenly fell to the ground 1436 | -10/Mines | Received a Mining Laser from a helpful Derelict 1441 | -10/Mines | Discovered new exit (range 5) 1452 | -10/Mines | Deemed a non-threat by the Exiles lab entrance 1452 | -10/Mines | Discovered new exit (range 5) 1751 | -10/Mines | Core integrity fell below 50% 1833 | -10/Mines | Discovered new exit (range 6) 1907 | -10/Mines | Entered Subcaves 2476 | -10/Subcaves | Lost 4 parts (1p2n1w) 2598 | -10/Subcaves | Shifting Twisted Machinery released Sub. Power Source 2681 | -10/Subcaves | Core integrity fell below 20% 2723 | -10/Subcaves | Destroyed by W6-T46(R) with Subdweller Laser Last Messages --------------- Imp. Aluminum Leg destroyed. Subatomizers dissect the Aluminum Leg. Aluminum Leg fries itself beyond repair. Heat Sink fries itself beyond repair. G-47 Trooper destroyed. Sml. Laser fries itself beyond repair. Acquired 19 matter. Acquired 23 matter. The unstable cave ceiling collapses. Acquired 3 matter. Acquired 38 matter. Sub. Optics shoots sparks and powers down. Dropped Broken Sub. Optics. Subatomizers dissect the Broken Sub. Optics. Sub. Power Source falls loose from the Twisted Machinery. Acquired Sub. Power Source. Dropped Lgt. Ion Engine. Beam Cannon destroyed. Imp. Aluminum Leg destroyed. Map ----- +----------------------------------------------------+ | ###?# ### ##?????## ##????????????????? | | "*"### ### #?????## #????????????????? | | "" #####?##### """#????????????????? | | """ # #???## ###""##????????????????? | | "#" #### ##??# ##?? "#?????????????????? | | """ #??# #### #??? ""????????????????? | | # # #??# ## #???# ""????????????????? | | #####?#" ### ##???# "????????????????? | | ??????# #### #### #???? "???????????????? | | ??????####??#####?# #????#?????????????????? | | ??????????????????# ##??????????????????????? | | ?????????????????## #?????#?????????????????? | | ?????????????????# ###??? #?????????????????? | | ?????????????????## ##??? ##????????????????? | | ??????????????????## ### #????????????????? | | ?????????????????#### """????????????????? | | ????????? ?????### # """????????????????? | | ???????? ???# """????????????????? | | ??????????# ## ####????????????????? | | ?????????## #############???????????????? | | ????? ##??????# #???????????????? | | ????? ### ####### ##??????????????? | | ?????? ??## #??????????????? | | ?????? ???# #??????????????? | | ??????? ?????# ## ##??????????????? | | ????????? ??????## #####@ ###???????????????? | | ?????????????????## ????# ##????????????????? | | ??????????????????##????# R #????????????????? | | ????????????????????? #????????????????? | | ???????????????????# #???????????????? | | ???????????????????# ## #???????????????? | | ???????????????????## ##?## #??????????????? | | ????????????????????# #????? #?????????????? | | ????????????????????# #??????? #????????????? | | ????????????????????# ????????? #????????????? | | ???????????????????? #?????????#### ???????????? | | ??????????????????? ??????????????? ??????????? | | ?????????????????? ???????????????????????????? | | ?????????????????? ????????????????????????????? | | ?????????????????# ????????????????????????????? | | ?????????????????? ?????????????????????????????? | | ?????????????????????????????????????????????????? | | ?????????????????????????????????????????????????? | | ?????????????????????????????????????????????????? | | ?????????????????????????????????????????????????? | | ?????????????????????????????????????????????????? | | ?????????????????????????????????????????????????? | | ?????????????????????????????????????????????????? | | ?????????????????????????????????????????????????? | | ?????????????????????????????????????????????????? | +----------------------------------------------------+ Best States ------------- Heat Dissipation 25 Energy Generation 15 Energy Capacity 200 Matter Stores 300 Matter Capacity 300 Sight Range 21 Terrain Scan Range 14 Terrain Scan Density 10 Evasion (%) 55 Targeting Accuracy 6 Item Schematics ----------------- None Robot Schematics ------------------ None Fabricated ------------ Nothing Alien Tech Used ----------------- None Achievements -------------- None Challenges ------------ None Game ------ Seed TerrainDefenseInterpreter Manual? 0 Play Time 00:20:51 Cumulative 11.0 hours Start 2024.12.01 @ 23:43:09 End 2024.12.02 @ 00:02:23 Sessions 1 Manual Loads 0 Difficulty Rogue Special Mode None Game No. 15 Rogue 15 Adventurer 0 Explorer 0 Win Type - Total 0 Types 0/0/0/0/0/0/0/0/0 Lore% 6 Gallery% 16 Achievement% 16 Wizard Run 0 Options --------- Layout 1 ASCII 0 Keyboard 0 Movement Mouse Keybinds 0 Fullscreen 2 Font 24/Tamsyn Map View 50x35 Zoom Use 0% Tactical HUD 0 Map Filters NONE Filters NONE Steam 0 RUN: 91d0395e-e455-4878-8537-b8bb2bad2681